Cogmind - Beta 15 @@@ ROGUE MODE // 2025.06.17 @ 03:25:40 Player: CL-1C0 Result: Destroyed by Autobeam Turret with Autobeam Performance ------------- Evolutions (0) 0 Regions Visited (2) 400 Robots Destroyed (11) 55 Value Destroyed (320) 320 Prototype IDs (0) 0 Alien Tech Used (0) 0 Bonus (0) 0 TOTAL SCORE: 775 Bonus ------- None Cogmind --------- Core Integrity 0/250 Matter 56/300 Energy 84/100 System Corruption 0% Temperature Cool (30) Movement Core (50) Location -10/Subcaves Parts ------- > --- POWER (1) -------- (None) > --- PROPULSION (2) --- (None) > --- UTILITY (2) ------ (None) > --- WEAPON (2) ------- Mini Grenade Launcher > --- INVENTORY (5) ---- Scrap Shield Heavy Hammer Heavy Hammer Peak State ------------ > --- POWER ------------ (None) > --- PROPULSION ------- Light Treads Light Treads > --- UTILITY ---------- (None) > --- WEAPON ----------- Mini Grenade Launcher > --- INVENTORY -------- Scrap Shield Mini Grenade Launcher Heavy Hammer Heavy Hammer [Rating: 5] Favorites ----------- Power None Propulsion Light Treads Treads Light Treads Utility None Weapon Mini Grenade Launcher Launcher Mini Grenade Launcher Build | -11 -10 -10 ------- Run | Yrd Mat Sub Slots Evolved . | . . . Power . | . . . Propulsion . | . . . Utility . | . . . Weapon . | . . . Parts Attached 5 | 2 1 2 Power . | . . . Engine . | . . . Core . | . . . Reactor . | . . . Propulsion 2 | 2 . . Treads 2 | 2 . . Leg . | . . . Wheel . | . . . Hover . | . . . Flight . | . . . Utility . | . . . Device . | . . . Storage . | . . . Processor . | . . . Hackware . | . . . Protection . | . . . Artifact . | . . . Weapon 3 | . 1 2 Energy Gun . | . . . Energy Cannon . | . . . Ballistic Gun . | . . . Ballistic Cannon . | . . . Launcher 3 | . 1 2 Special Weapon . | . . . Impact Weapon . | . . . Slashing Weapon . | . . . Piercing Weapon . | . . . Special Melee Weapon . | . . . Unidentified Prototypes . | . . . Parts Lost 4 | . . 4 Power . | . . . Propulsion 2 | . . 2 Utility . | . . . Weapon 2 | . . 2 Highest Loss Streak 2 | . . 2 To Critical Strikes . | . . . Average Backups 3 | 4 2 3 Power . | 1 . . Propulsion . | 2 . . Utility . | . . . Weapon 2 | 1 2 3 Tool/Special . | . . . Unused Backups 3 | . . 3 Power . | . . . Propulsion . | . . . Utility 1 | . . 1 Weapon 2 | . . 2 Tool/Special . | . . . Average Slot Usage (%) 38 | . 39 38 Treads 24 | . 28 24 Launcher 13 | . 11 14 Peak Build Rating 5 | 2 4 5 Average Rating 3 | 1 3 4 On Entrance 4 | 6 2 4 Naked Turns 2 | . . 2 Heaviest Build 1 | . 1 1 Greatest Support 3 | 3 3 3 Greatest Overweight (x) . | . . . Average Overweight (x) . | . . . Largest Inventory Capacity 5 | 5 5 5 Average Capacity 5 | 5 5 5 Most Carried 5 | 4 4 5 Average Carried 3 | 2 3 3 Final Capacity 5 | 5 5 5 Final Carried 4 | . 4 4 Class Distribution -------------------- 100% | Mutant Dominant Class ---------------- Mutant | -10/Materials Mutant | -10/Subcaves Resources | -11 -10 -10 ----------- Run | Yrd Mat Sub Matter Collected 356 | 200 . 156 Remotely . | . . . Salvage Created 145 | . . 145 Parts 15 | . . 15 Haulers Intercepted . | . . . Recyclers Shooed . | . . . Parts Field Recycled . | . . . Retrieved Matter . | . . . Parts Self-Destructed 6 | . . 6 Prevented . | . . . Kills | -11 -10 -10 ------- Run | Yrd Mat Sub Combat Hostiles Destroyed 11 | . . 11 AOE 11 | . . 11 Classes Destroyed 2 | . . 2 Swarmer 4 | . . 4 Subdweller 7 | . . 7 Best Kill Streak 4 | . . 4 Combat Bots Only 4 | . . 4 Max Kills in Single Turn 2 | . . 2 Gunslinging . | . . . Exploded 2 | . . 2 Melee . | . . . Uniques/NPCs Destroyed . | . . . Combat | -11 -10 -10 -------- Run | Yrd Mat Sub Hostile Shots Fired 47 | . . 47 Missed 14 | . . 14 Hits 33 | . . 33 Projectile 33 | . . 33 Damage Taken 651 | . 15 636 Core 256 | . . 256 Absorbed by Shields . | . . . Core Remaining (%) 100 | 100 . . Volleys Fired 37 | . 5 32 Largest 1 | . 1 1 Hottest 30 | . 30 30 Shots Fired 37 | . 5 32 Gun . | . . . Cannon . | . . . Launcher 37 | . 5 32 Special . | . . . Kinetic . | . . . Thermal . | . . . Explosive 37 | . 5 32 Electromagnetic . | . . . Robot Hit Streak 6 | . . 6 Robot Miss Streak 5 | . . 5 Penetration Max . | . . . Secondary Targets . | . . . Shots Hit Robots 13 | . . 13 Core Hits 17 | . . 17 Critical Kills . | . . . Critical Parts Destroyed . | . . . Critical Strikes . | . . . Melee Attacks . | . . . Impact . | . . . Slashing . | . . . Piercing . | . . . Sneak Attacks . | . . . Combat Hostiles . | . . . Follow-up Attacks . | . . . Damage Inflicted 1515 | . 74 1441 Guns . | . . . Cannons . | . . . Explosions 1515 | . 74 1441 Melee . | . . . Ramming . | . . . Kinetic . | . . . Thermal . | . . . Explosive 1515 | . 74 1441 Electromagnetic . | . . . Impact . | . . . Slashing . | . . . Piercing . | . . . Highest Corruption . | . . . Average Corruption . | . . . Corruption Purged . | . . . Corruption Blocked . | . . . Overload Shots . | . . . Overflow Damage 22 | . 7 15 Projectiles . | . . . Explosions 22 | . 7 15 Melee . | . . . Knockbacks . | . . . Impact . | . . . Kinetic . | . . . Secondary . | . . . Self-Inflicted Damage 294 | . 15 279 Shots 10 | . 1 9 Rammed . | . . . Targets Rammed . | . . . Kicked . | . . . Crushed . | . . . Highest Temperature 5 | . 5 . Average Temperature 5 | . 5 . Received Heat Transfer 78 | . . 78 Siege Activations . | . . . Martial Activations . | . . . Shielding Activations . | . . . Robots Disrupted . | . . . Combat Hostiles . | . . . Robots Corrupted . | . . . Combat Hostiles . | . . . Parts Fried . | . . . Impact Corruptions . | . . . Robots Melted . | . . . Combat Hostiles . | . . . Parts Melted . | . . . Heat Transferred . | . . . Parts Sabotaged . | . . . Parts Stolen . | . . . Parts Stripped . | . . . Power Chain Reactions . | . . . Alert | -11 -10 -10 ------- Run | Yrd Mat Sub Maximum Alert Level . | . . . Low Security (%) 100 | 100 100 . Level 1 . | . . . Level 2 . | . . . Level 3 . | . . . Level 4 . | . . . Level 5 . | . . . High Security . | . . . Max Security . | . . . Peak Influence 12 | . 12 . Initial . | . . . Average 3 | . 3 . Influence Increases 197 | . 12 185 Destroy 0b10 Robot/C 80 | . . 80 Destroy Structure 12 | . 12 . Lose Combat Pursuer 105 | . . 105 Influence Decreases 52 | . . 52 Entered New Map 7 | . . 7 Time Decay 25 | . . 25 Lost Part 20 | . . 20 Squads Dispatched 1 | . 1 . Investigation . | . . . Extermination . | . . . Reinforcement 1 | . 1 . Assault . | . . . Garrison . | . . . Intercept . | . . . Searches Triggered . | . . . Construction Impeded . | . . . Haulers Reinforced . | . . . Active Scanning Responses . | . . . Cargo Convoy Interrupts . | . . . Stealth | -11 -10 -10 --------- Run | Yrd Mat Sub Distress Signals . | . . . Communications Jammed . | . . . Distress Signals . | . . . Times Spotted 22 | . 1 21 Peak Tracking Total 5 | . 1 5 Tactical Retreats 2 | . . 2 Traps | -11 -10 -10 ------- Run | Yrd Mat Sub Traps Triggered . | . . . Indirectly . | . . . Trap Hack Attempts . | . . . Triggered . | . . . Disarmed . | . . . Reprogrammed . | . . . Reused . | . . . Traps Extracted . | . . . Installed . | . . . Triggered . | . . . Machines | -11 -10 -10 ---------- Run | Yrd Mat Sub Machines Disabled 2 | . . 2 Max in Single Turn 1 | . . 1 Machines Repaired . | . . . Machines Dismantled . | . . . Machines Sabotaged . | . . . Overloaded Fab Kills . | . . . Hacking | -11 -10 -10 --------- Run | Yrd Mat Sub Machines Accessed . | . . . Terminals . | . . . Fabricators . | . . . Repair Stations . | . . . Recycling Units . | . . . Scanalyzers . | . . . Garrison Access . | . . . Total Hacks . | . . . Successful . | . . . Failed . | . . . Catastrophic . | . . . Database Lockouts . | . . . Manual . | . . . Terminals . | . . . Fabricators . | . . . Repair Stations . | . . . Recycling Units . | . . . Scanalyzers . | . . . Garrison Access . | . . . Terminal Hacks . | . . . Fabricator Hacks . | . . . Repair Station Hacks . | . . . Recycling Unit Hacks . | . . . Scanalyzer . | . . . Garrison Access Hacks . | . . . Unauthorized Hacks . | . . . Terminals . | . . . Fabricators . | . . . Repair Stations . | . . . Recycling Units . | . . . Scanalyzers . | . . . Garrison Access . | . . . Data Cores Recovered . | . . . Used . | . . . Hacking Detections . | . . . Full Trace Events . | . . . Feedback Events . | . . . Feedback Blocked . | . . . Robot Schematics Acquired . | . . . Robots Built . | . . . Authchips . | . . . Time . | . . . Total Robot Build Rating . | . . . Part Schematics Acquired . | . . . Parts Built . | . . . Authchips . | . . . Time . | . . . Total Part Build Rating . | . . . Parts Repaired . | . . . Time . | . . . Parts Recycled . | . . . Recycled Matter . | . . . Retrieved Matter . | . . . Retrieved Components . | . . . Parts Scanalyzed . | . . . Part Schematics Acquired . | . . . Parts Damaged . | . . . Bothacking | -11 -10 -10 ------------ Run | Yrd Mat Sub Used RIF Installer . | . . . Robots Hacked . | . . . Non-combat . | . . . Combat . | . . . Robot Hacks Applied . | . . . Relay Couplers Released . | . . . Fabnet Peak Effective % . | . . . Robots Rewired . | . . . Allies Hacked . | . . . Hacks Repelled . | . . . Allies | -11 -10 -10 -------- Run | Yrd Mat Sub Total Allies . | . . . Largest Group . | . . . Highest-Rated Group . | . . . Highest-Rated Ally . | . . . Total Orders . | . . . Ally Attacks . | . . . Total Damage . | . . . Kills . | . . . Allies Corrupted . | . . . Allies Melted . | . . . Intel | -11 -10 -10 ------- Run | Yrd Mat Sub Active Infowar (turns) . | . . . Robot Analysis Total . | . . . Derelict Logs Recovered 2 | . . 2 Drone Launches . | . . . Drone Recoveries . | . . . Exploration | -11 -10 -10 ------------- Run | Yrd Mat Sub Turns Passed 386 | 4 38 344 Spaces Moved 595 | 1 45 549 Core 595 | 1 45 549 Treads . | . . . Legs . | . . . Wheels . | . . . Hover . | . . . Flight . | . . . Fastest Speed 50 | 50 50 50 Average Speed 50 | 50 50 50 Slowest Speed 50 | 50 50 50 Overloaded Moves . | . . . Propulsion Burnouts . | . . . Robots Hopped . | . . . Potential Cave-ins . | . . . Cave-ins Triggered . | . . . Exploration Rate (%) 22 | 2 14 51 Regions Visited 2 Branch Regions 1 Pre-discovered Areas 1 | . . 1 Known Exits Taken . | . . . Unknown Exits Taken 2 | 1 1 . Scrap Searched . | . . . Spaces Dug 14 | . . 14 Terrain Destroyed 181 | . 31 150 Melee . | . . . Projectile . | . . . AOE 181 | . 31 150 Terrain Rammed . | . . . Walls Destroyed . | . . . Machines Disabled . | . . . Actions | -11 -10 -10 --------- Run | Yrd Mat Sub Total 647 | 5 54 588 Wait 4 | . . 4 Move 593 | . 44 549 Hop . | . . . Pick Up 5 | . 4 1 Fast Attach 1 | . 1 . Attach 4 | 2 . 2 Detach . | . . . Swap . | . . . Drop 3 | 3 . . Fire 37 | . 5 32 Melee . | . . . Ram . | . . . Kick . | . . . Crush . | . . . Escape Stasis . | . . . Rewire . | . . . Trap . | . . . Miscellaneous . | . . . Route ------- -11/Scrapyard -10/Materials -10/Subcaves (discovered 1 exit: [*Mat]) History --------- Turn | Location | Event 1 | -11/Scrapyard | Released all parts (6) 5 | -11/Scrapyard | Discovered new exit (range 0) 5 | -11/Scrapyard | Entered Materials 35 | -10/Materials | Discovered new exit (range 12) 43 | -10/Materials | Entered Subcaves 46 | -10/Subcaves | Learned Materials interactive machine intel 78 | -10/Subcaves | A swath of the cavern ceiling suddenly collapsed 90 | -10/Subcaves | Shifting Twisted Machinery released Battle Rifle 90 | -10/Subcaves | Learned location of Zion (-7) 90 | -10/Subcaves | Met a Zionite searching for "candidates" 91 | -10/Subcaves | Shifting Twisted Machinery released Piercing Trap 95 | -10/Subcaves | Learned Materials stockpile data 199 | -10/Subcaves | Disturbed a concealed Subdweller 248 | -10/Subcaves | Shifting Twisted Machinery released Piercing Trap 256 | -10/Subcaves | Shifting Twisted Machinery released Sub. Monowheel 315 | -10/Subcaves | Build established: Mutant 318 | -10/Subcaves | Core integrity fell below 50% 332 | -10/Subcaves | Discovered new exit (range 10) 369 | -10/Subcaves | Core integrity fell below 20% 387 | -10/Subcaves | Destroyed by Autobeam Turret with Autobeam Last Messages --------------- 00305_ TC-C77(R): "WEHOME!" 00306_ XS-CLO(R) destroyed. 00307_ TC-C77(R) destroyed. 00310_ Destroyed Scrap Shield. 00310_ Lgt. Treads destroyed. 00312_ P1-XAK(R) destroyed. 00321_ The unstable cave ceiling collapses. 00325_ Acquired 40 matter. 00327_ Acquired 15 matter. 00327_ Acquired 9 matter. 00331_ Acquired 10 matter. 00332_ EXIT=FOUND 00349_ Acquired 5 matter. 00360_ S-10 Pest destroyed. 00362_ Lgt. Treads destroyed. 00365_ Lgt. Assault Rifle fries itself beyond repair. 00368_ Destroyed Flight Unit. 00368_ S-10 Pest destroyed. 00383_ The unstable cave ceiling collapses. 00384_ Mni. Grenade Launcher destroyed. Map ----- +----------------------------------------------------+ | ???????????????????% ???# ##??????????????? | | ????????????????????# ???# ###?????????????? | | ????????????????????# #?## ####??????????? | | ?????????????????????# ## #??????????? | | ??????????????????????# #????????? | | ??????????????????????# ## #????????? | | ??????????????????????# ##?### #????????? | | ??????????????????????# ###?????# #????????? | | ?????????????????#????## #???????? %#????????? | | ?????????????????# ### #??###????%#????????? | | ?????????????????# #### ##????##???????? | | ?????????????????# ## #??? #???????? | | ???????????????##### #?? #???????? | | ???????????????# ### ## ## #????????? | | ???????????????# ###### #### #????????? | | ??????????????## ###??######## #????????? | | ??????????????# ###?## ## ##????????? | | ??????????????# ### ## ##?????????? | | ??????????????## ## #??????????? | | ???????????????##### ## ##??????????? | | ????????????????#### ## ##??????????? | | ????????????????# ### #??????????? | | ????????????????# #### #??????????? | | ????????????????## ### ##### #??????????? | | ?????????????????##### ## #???? #??????????? | | ?????????????????????## @ ##???? #?????????? | | ??????????????????????## ##????? #????????? | | ?????????????????????# "#????? ##????????? | | ????????????????????# """#????? ##?????????? | | ???????????????????? """ ????##??????????? | | ???????????????????# &*""""#???????????????? | | ?????????????????? &%" ""????????????????? | | ????????????????? &[""""????????????????? | | ???????????????? """"????????????????? | | ???????????????" t " ????????????????? | | ??????????????? """ ?????????????????? | | ??????????????#""t """ ??????????????????? | | ???????????????? "????????????????????? | | ???????????????" ????????????????????? | | ?????????????????" "# " ?????????????????????? | | ?????????????????????### ?????????????????????? | | ???????????????????????""?""?????????????????????? | | ?????????????????????????????????????????????????? | | ?????????????????????????????????????????????????? | | ?????????????????????????????????????????????????? | | ?????????????????????????????????????????????????? | | ?????????????????????????????????????????????????? | | ?????????????????????????????????????????????????? | | ?????????????????????????????????????????????????? | | ?????????????????????????????????????????????????? | +----------------------------------------------------+ Best States ------------- Heat Dissipation 25 Energy Generation 5 Energy Capacity 100 Matter Stores 270 Matter Capacity 300 Sight Range 16 Terrain Scan Density 10 Evasion (%) 50 Recoil Reduction 2 Item Schematics ----------------- None Robot Schematics ------------------ None Fabricated ------------ Nothing Repaired ---------- Nothing Alien Tech Used ----------------- None Achievements -------------- None Challenges ------------ None Game ------ Seed SmartbombHelicalDrillbomb Manual? 0 Play Time 00:05:37 Cumulative 541.1 hours Start 2025.06.17 @ 03:18:21 End 2025.06.17 @ 03:25:40 Sessions 1 Manual Loads 0 Difficulty Rogue Special Mode None Game No. 645 Rogue 645 Adventurer 0 Explorer 0 Win Type - Total 19 Types 13/0/5/1/0/0/0/0/0/0 Lore% 84 Gallery% 83 Achievement% 82 Wizard Run 0 Options --------- Layout 0 ASCII 0 Keyboard 0 Movement Numpad Keybinds 0 Fullscreen 1 Font 18/SmallcapsGlow Map View 76x50 Zoom Use 0% Tactical HUD 1 Map Filters NONE Filters NONE Steam 1 RUN: 08a04b74-2aa8-42b8-8e94-a6d0904e7348